bitfinex-derivatives/quotes_BTCF0:USTF0_20250809
["timestamp","ask_amount","ask_price","bid_price","bid_amount"]
[1754753654475,1.24673225,116920.0,116910.0,0.12719]
[1754753654665,1.24673225,116920.0,116910.0,0.10899]
[1754753654862,0.212158,116910.0,116900.0,0.2356697]
[1754753655071,1.01585873,116910.0,116900.0,1.0664297]
[1754753655471,1.01585873,116910.0,116900.0,1.0996497]
[1754753656085,1.01585873,116910.0,116900.0,1.1006497]
[1754753656279,1.01585873,116910.0,116900.0,1.1188497]
[1754753656475,1.01585873,116910.0,116900.0,0.1984697]
[1754753656770,0.95253727,116910.0,116900.0,0.2212297]
[1754753656976,0.50963654,116910.0,116900.0,0.2212297]
[1754753657176,0.95253727,116910.0,116900.0,0.2212297]
[1754753657976,0.95353727,116910.0,116900.0,0.2202297]
[1754753658672,0.97237727,116910.0,116900.0,0.2202297]
[1754753658867,0.52947654,116910.0,116900.0,0.2192297]
[1754753659067,0.97237727,116910.0,116900.0,0.2475697]
[1754753659379,0.97237727,116910.0,116900.0,0.3208497]
[1754753662279,0.52947654,116910.0,116900.0,0.3208497]
[1754753662479,0.97237727,116910.0,116900.0,0.3208497]
[1754753663086,0.52947654,116910.0,116900.0,0.3731549]
[1754753663276,0.52947654,116910.0,116900.0,0.4063749]
[1754753663277,0.16867654,116910.0,116900.0,0.4063749]
[1754753663477,0.61157727,116910.0,116900.0,0.3208497]
[1754753663777,0.61157727,116910.0,116900.0,0.4063749]
[1754753664581,0.61157727,116910.0,116900.0,0.3208497]
[1754753664785,0.5576063,116910.0,116900.0,0.3208497]
[1754753666689,0.5901163,116910.0,116900.0,0.3208497]
[1754753667483,0.9509163,116910.0,116900.0,0.3208497]
[1754753667881,0.5901163,116910.0,116900.0,0.16701045]
[1754753668087,0.9509163,116910.0,116900.0,0.16701045]
[1754753668288,0.14721557,116910.0,116900.0,0.25253575]
[1754753668593,0.5901163,116910.0,116900.0,0.25253575]
[1754753669492,0.5901163,116910.0,116900.0,0.406375]
[1754753670190,0.5901163,116910.0,116900.0,0.25253575]
[1754753670989,0.140238,116910.0,116900.0,0.25253575]
[1754753671692,0.085518,116910.0,116900.0,0.25253575]
[1754753671993,0.140238,116910.0,116900.0,0.25253575]
[1754753672197,0.58313873,116910.0,116900.0,0.25253575]
[1754753673092,0.58313873,116910.0,116900.0,0.25353575]
[1754753673585,0.58313873,116910.0,116900.0,0.25253575]
[1754753674291,0.58313873,116910.0,116900.0,0.25353575]
[1754753674990,0.58313873,116910.0,116900.0,0.25253575]
[1754753676588,0.58313873,116910.0,116900.0,0.406375]
[1754753677593,0.140238,116910.0,116900.0,0.406375]
[1754753677786,0.58313873,116910.0,116900.0,0.406375]
[1754753680695,0.58313873,116910.0,116900.0,0.25253575]
[1754753683197,0.140238,116910.0,116900.0,0.25253575]
[1754753683598,0.58313873,116910.0,116900.0,0.25253575]
[1754753684793,0.58313873,116910.0,116900.0,0.16701045]
[1754753685200,0.58313873,116910.0,116900.0,0.25253615]
[1754753685693,0.58313873,116910.0,116900.0,0.16701045]
[1754753686398,0.58313873,116910.0,116900.0,0.13379045]
[1754753686595,0.58313873,116910.0,116900.0,0.16661045]
[1754753688497,0.58313873,116910.0,116900.0,0.25213615]
[1754753689200,0.94393873,116910.0,116900.0,0.16661045]
[1754753690295,0.94393873,116910.0,116900.0,0.89287045]
[1754753691494,0.94393873,116910.0,116900.0,0.04263045]
[1754753691691,0.0855257,116900.0,116890.0,0.98115925]
[1754753691891,0.58345643,116900.0,116890.0,0.85722]
[1754753692099,0.58345643,116900.0,116890.0,0.87615]
[1754753692300,0.58345643,116900.0,116890.0,0.95312]
[1754753692501,0.58345643,116900.0,116890.0,0.98964201]
[1754753692704,0.58345643,116900.0,116890.0,1.09737265]
[1754753693204,0.58345643,116900.0,116890.0,1.09837265]
[1754753693701,0.58345643,116900.0,116890.0,0.16819265]
[1754753694003,0.58345643,116900.0,116890.0,0.99539265]
[1754753694603,0.58345643,116900.0,116890.0,1.01183265]
[1754753695005,0.58345643,116900.0,116890.0,1.03076265]
[1754753695204,0.58345643,116900.0,116890.0,1.06458265]
[1754753695904,0.58345643,116900.0,116890.0,1.06358265]
[1754753696300,0.58345643,116900.0,116890.0,1.06258265]
[1754753697405,0.58345643,116900.0,116890.0,1.14336126]
[1754753698406,0.58345643,116900.0,116890.0,0.21330126]
[1754753698407,0.94425643,116900.0,116890.0,0.21330126]
[1754753698710,0.94425643,116900.0,116890.0,1.03998126]
[1754753699106,0.94425643,116900.0,116890.0,0.93497201]
[1754753699501,0.94425643,116900.0,116890.0,0.98900201]
[1754753703415,0.5013557,116900.0,116890.0,0.98900201]
[1754753703613,0.4463257,116900.0,116890.0,1.07453501]
[1754753703813,0.4463257,116900.0,116890.0,1.51743574]
[1754753704015,0.0855257,116900.0,116890.0,1.98584794]
[1754753704214,0.0855257,116900.0,116890.0,1.54294721]
[1754753704418,0.0855257,116900.0,116890.0,1.87823574]
[1754753705412,0.0855257,116900.0,116890.0,1.43533501]
[1754753705610,0.0855257,116900.0,116890.0,2.03207499]
[1754753705811,0.0865257,116900.0,116890.0,2.03407499]
[1754753706311,0.0865257,116900.0,116890.0,2.03607499]
[1754753706515,0.0865257,116900.0,116890.0,1.59317426]
[1754753706817,0.0865257,116900.0,116890.0,2.03407499]
[1754753707018,0.0865257,116900.0,116890.0,2.03507499]
[1754753707315,0.0855257,116900.0,116890.0,2.03407499]
[1754753708115,0.78499103,116910.0,116890.0,2.03407499]
[1754753708319,0.78499103,116910.0,116900.0,0.10604]
[1754753708522,0.83978103,116910.0,116900.0,0.12837]
[1754753708923,0.83978103,116910.0,116900.0,0.28220925]
[1754753710418,1.20058103,116910.0,116900.0,0.28220925]
[1754753711126,1.20448103,116910.0,116900.0,0.28220925]
[1754753711319,1.20448103,116910.0,116900.0,0.12837]
[1754753711721,1.20448103,116910.0,116900.0,0.05272]
[1754753711931,1.20448103,116910.0,116900.0,0.0712]
[1754753712227,1.20448103,116910.0,116900.0,0.12837]
[1754753716624,1.20448103,116910.0,116900.0,0.05272]
[1754753716821,1.20058103,116910.0,116900.0,0.03956]
[1754753718034,1.20058103,116910.0,116900.0,0.13213488]
[1754753722237,1.20448103,116910.0,116900.0,0.13213488]
[1754753726034,1.20448103,116910.0,116900.0,0.02451]
[1754753726437,1.20448103,116910.0,116900.0,0.05272]
[1754753726634,1.20448103,116910.0,116900.0,0.12837]
[1754753726837,1.20448103,116910.0,116900.0,0.2138958]
[1754753727332,1.20448103,116910.0,116900.0,0.12837]
[1754753730339,1.20448103,116910.0,116900.0,0.09353]
[1754753730530,0.7615803,116910.0,116900.0,0.09353]
[1754753730732,1.20448103,116910.0,116900.0,0.12837]
[1754753733639,1.20448103,116910.0,116900.0,0.2138958]
[1754753733836,1.20448103,116910.0,116900.0,0.28220925]
[1754753734134,1.20448103,116910.0,116900.0,0.36773505]
[1754753735443,0.7615803,116910.0,116900.0,0.36773505]
[1754753735635,0.84368953,116910.0,116900.0,0.72853505]
[1754753735841,0.84368953,116910.0,116900.0,0.36773505]
[1754753737533,0.4007888,116910.0,116900.0,0.36773505]
[1754753737733,0.84368953,116910.0,116900.0,0.36773505]
[1754753738234,0.4007888,116910.0,116900.0,0.36773505]
[1754753738536,0.84368953,116910.0,116900.0,0.36773505]
[1754753739339,0.84368953,116910.0,116900.0,0.72853505]
[1754753740744,0.84368953,116910.0,116900.0,0.28220925]
[1754753740945,0.84368953,116910.0,116900.0,0.36773495]
[1754753743143,1.20448953,116910.0,116900.0,0.28220925]
[1754753743536,0.84368953,116910.0,116900.0,0.36773505]
[1754753744049,1.20448953,116910.0,116900.0,0.28220925]
[1754753744256,1.20448953,116910.0,116900.0,0.17834925]
[1754753745945,1.20448953,116910.0,116900.0,0.22621925]
[1754753746144,1.20448953,116910.0,116900.0,0.28263925]
[1754753746747,1.20448953,116910.0,116900.0,0.1288]
[1754753747740,0.84368953,116910.0,116900.0,0.1288]
[1754753747941,1.20448953,116910.0,116900.0,0.1288]
[1754753749450,1.20448953,116910.0,116900.0,0.09387]
[1754753750650,1.20448953,116910.0,116900.0,0.0531]
[1754753753752,1.20448953,116910.0,116900.0,0.02451]
[1754753756745,1.42563264,116910.0,116900.0,0.02451]
[1754753756951,1.42563264,116910.0,116900.0,0.03988]
[1754753757153,1.42563264,116910.0,116900.0,0.20693925]
[1754753757654,1.42563264,116910.0,116900.0,0.26114925]
[1754753758854,0.7615888,116910.0,116900.0,0.1288]
[1754753759053,1.09361072,116910.0,116900.0,0.1288]
[1754753759253,0.7615888,116910.0,116900.0,0.1288]
[1754753759552,1.09361072,116910.0,116900.0,0.1288]
[1754753759749,1.09361072,116910.0,116900.0,0.1601157]
[1754753759955,0.73281072,116910.0,116900.0,0.54634762]
[1754753760252,0.73281072,116910.0,116900.0,0.2143257]
[1754753760655,0.81344662,116910.0,116900.0,0.2143257]
[1754753761051,0.81344662,116910.0,116900.0,0.1288]
[1754753761256,0.81344662,116910.0,116900.0,0.07459]
[1754753761459,0.81344662,116910.0,116900.0,0.02451]
[1754753761661,0.81344662,116910.0,116900.0,0.2143257]
[1754753762057,0.81344662,116910.0,116900.0,0.84535]
[1754753762258,0.81344662,116910.0,116900.0,0.82084]
[1754753762458,0.81344662,116910.0,116900.0,0.84343]
[1754753764466,0.81344662,116910.0,116900.0,0.9768257]
[1754753764760,0.37081253,116910.0,116900.0,0.99903227]
[1754753764950,0.81344662,116910.0,116900.0,0.99903227]
[1754753765150,0.81344662,116910.0,116900.0,0.87202]
[1754753765349,1.17424662,116910.0,116900.0,0.87202]
[1754753765757,1.17424662,116910.0,116900.0,0.02259]
[1754753766060,1.24355787,116910.0,116890.0,0.85708201]
[1754753766360,0.58433979,116900.0,116890.0,0.88088201]
[1754753767168,0.58433979,116900.0,116890.0,0.88188201]
[1754753767465,0.58433979,116900.0,116890.0,0.88288201]
[1754753767666,0.58433979,116900.0,116890.0,0.88188201]
[1754753768264,0.94513979,116900.0,116890.0,0.88188201]
[1754753770355,0.94513979,116900.0,116890.0,0.89772201]
[1754753770554,0.94513979,116900.0,116890.0,0.91010201]
[1754753770758,0.94513979,116900.0,116890.0,0.92864201]
[1754753770960,0.94513979,116900.0,116890.0,1.01780258]
[1754753771266,0.94513979,116900.0,116890.0,1.01680258]
[1754753772959,0.94513979,116900.0,116890.0,0.98547201]
[1754753774567,0.94513979,116900.0,116890.0,1.09313534]
[1754753776659,0.94513979,116900.0,116890.0,0.98782534]
[1754753776863,2.20753388,116900.0,116890.0,0.13585894]
[1754753777064,2.22027388,116900.0,116890.0,0.00730944]
[1754753777268,1.77763979,116900.0,116890.0,4e-08]
[1754753777463,0.170843,116890.0,116880.0,0.92435]
[1754753777668,0.97427709,116890.0,116880.0,0.95101833]
[1754753778464,0.97427709,116890.0,116880.0,0.95201833]
[1754753779067,0.97427709,116890.0,116880.0,0.97585833]
[1754753779870,0.97427709,116890.0,116880.0,0.97685833]
[1754753785678,0.97427709,116890.0,116880.0,1.08442431]
[1754753787087,1.41691118,116890.0,116880.0,0.16007431]
[1754753787287,1.41691118,116890.0,116880.0,0.97923431]
[1754753787497,0.97427709,116890.0,116880.0,0.97923431]
[1754753787795,0.97427709,116890.0,116880.0,0.99161431]
[1754753788094,0.97427709,116890.0,116880.0,1.02599431]
[1754753788300,0.97427709,116890.0,116880.0,1.06080431]
[1754753788995,1.42337709,116890.0,116880.0,1.06080431]
[1754753791198,1.42337709,116890.0,116880.0,1.13762539]
[1754753791395,1.42337709,116890.0,116880.0,1.03005941]
[1754753796397,1.42337709,116890.0,116880.0,0.97625833]
[1754753796594,1.37709709,116890.0,116880.0,0.97625833]
[1754753796795,1.37709709,116890.0,116880.0,1.05312689]
[1754753796993,1.41043709,116890.0,116880.0,0.97625833]
[1754753801598,1.42339709,116890.0,116880.0,0.97625833]
[1754753802498,1.86603118,116890.0,116880.0,0.09955833]
[1754753802700,1.86603118,116890.0,116880.0,0.89860833]
[1754753802893,1.86603118,116890.0,116880.0,0.07796364]
[1754753803100,1.86603118,116890.0,116880.0,0.10181364]
[1754753804005,1.86603118,116890.0,116880.0,4e-08]
[1754753804200,0.1720003,116880.0,116870.0,0.03704]
[1754753804502,1.41806848,116880.0,116870.0,0.03704]
[1754753805098,1.41806848,116880.0,116870.0,0.05587]
[1754753805300,1.41806848,116880.0,116870.0,0.07171]
[1754753805603,1.41806848,116880.0,116870.0,0.10352]
[1754753806305,1.41906848,116880.0,116870.0,0.10352]
[1754753806699,1.42006848,116880.0,116870.0,0.12641]
[1754753807808,0.1720076,116870.0,116860.0,0.94421]
[1754753808000,0.97544169,116870.0,116860.0,0.05288]
[1754753808511,0.97544169,116870.0,116860.0,0.07171]
[1754753808703,0.97544169,116870.0,116860.0,0.12641]
[1754753808910,0.97544169,116870.0,116860.0,0.12741]
[1754753810207,0.97544169,116870.0,116860.0,0.12841]
[1754753812204,0.97544169,116870.0,116860.0,0.23601873]
[1754753812705,0.97544169,116870.0,116860.0,0.12841]
[1754753815610,0.97544169,116870.0,116860.0,0.002]
[1754753815907,0.97544169,116870.0,116850.0,0.15280505]
[1754753815908,0.1722749,116860.0,116850.0,0.15280505]
[1754753816104,0.97570899,116860.0,116850.0,0.22965725]
[1754753816506,0.97570899,116860.0,116850.0,0.15280505]
[1754753817015,0.97570899,116860.0,116850.0,0.22965725]
[1754753817211,0.96248899,116860.0,116850.0,0.15480505]
[1754753817509,0.97670899,116860.0,116850.0,0.26441378]
[1754753820620,0.96348899,116860.0,116850.0,0.26441378]
[1754753821125,0.99984899,116860.0,116850.0,0.11160873]
[1754753821525,0.99984899,116860.0,116850.0,0.004]
[1754753822421,0.99984899,116860.0,116850.0,0.11160873]
[1754753823918,0.99984899,116860.0,116850.0,0.13762433]
[1754753825828,1.81640899,116860.0,116850.0,0.13762433]
[1754753826121,1.81640899,116860.0,116850.0,1e-07]
[1754753826122,2.26364308,116860.0,116850.0,1e-07]
[1754753826328,0.2060122,116850.0,116840.0,0.0262739]
[1754753826522,1.45208038,116850.0,116840.0,0.07680156]
[1754753827222,1.45208038,116850.0,116840.0,0.10340682]
[1754753827422,1.45208038,116850.0,116840.0,0.10440682]
[1754753828615,1.52155032,116850.0,116840.0,0.07780156]
[1754753829125,1.45308038,116850.0,116840.0,0.07780156]
[1754753829424,1.01044629,116850.0,116840.0,0.1044648]
[1754753829624,1.01044629,116850.0,116840.0,0.16861156]
[1754753830722,1.45308038,116850.0,116840.0,0.09117156]
[1754753831625,1.01044629,116850.0,116840.0,0.03997]
[1754753831821,1.01044629,116850.0,116840.0,0.13153]
[1754753832228,1.01044629,116850.0,116840.0,0.20835388]
[1754753832520,0.90691629,116850.0,116840.0,0.24352821]
[1754753832720,0.90691629,116850.0,116840.0,0.3203712]
[1754753832923,0.4473622,116850.0,116840.0,0.35113694]
[1754753833315,0.0865622,116850.0,116840.0,0.35113694]
[1754753833630,0.0865622,116850.0,116840.0,0.79377103]
[1754753833824,0.0865622,116850.0,116840.0,0.35113694]
[1754753836132,0.0865622,116850.0,116840.0,0.24352821]
[1754753836828,0.52919629,116850.0,116840.0,0.24352821]
[1754753839629,0.0865622,116850.0,116840.0,0.24352821]
[1754753839827,0.52919629,116850.0,116840.0,0.24352821]
[1754753840331,0.0865622,116850.0,116840.0,0.39736746]
[1754753840522,0.001,116850.0,116840.0,1.20080155]
[1754753840721,0.0865622,116850.0,116840.0,0.75816746]
[1754753840917,0.52919629,116850.0,116840.0,0.75816746]
[1754753841119,0.52919629,116850.0,116840.0,0.60432821]
[1754753841429,0.52919629,116850.0,116840.0,0.75810168]
[1754753842223,0.0865622,116850.0,116840.0,0.75810168]
[1754753843831,0.0865622,116850.0,116840.0,0.60432821]
[1754753846330,0.52919629,116850.0,116840.0,0.60432821]
[1754753846834,0.1376022,116850.0,116840.0,0.60432821]
[1754753847036,0.58023629,116850.0,116840.0,0.60432821]
[1754753847435,0.64964629,116850.0,116840.0,0.60432821]
[1754753848037,0.64964629,116850.0,116840.0,0.60432771]
[1754753848231,0.64964629,116850.0,116840.0,1.48801433]
[1754753848732,0.61452629,116850.0,116840.0,1.48801433]
[1754753850629,0.1752022,116850.0,116840.0,1.33427841]
[1754753850829,0.61783629,116850.0,116840.0,1.33427841]
[1754753851232,0.61783629,116850.0,116840.0,0.44409841]
[1754753851439,0.97863629,116850.0,116840.0,0.86842841]
[1754753852438,0.97863629,116850.0,116840.0,0.05302841]
[1754753854836,0.97863629,116850.0,116840.0,0.12226841]
[1754753855041,0.97863629,116850.0,116840.0,0.14303841]
[1754753856038,0.97863629,116850.0,116840.0,0.15996841]
[1754753861942,0.95548629,116850.0,116840.0,0.24553841]
[1754753863034,0.97951629,116850.0,116840.0,0.24553841]
[1754753863230,0.94186629,116850.0,116840.0,0.24553841]
[1754753863436,0.0855622,116850.0,116840.0,0.76509303]
[1754753863737,0.0855622,116850.0,116840.0,0.32245894]
[1754753864055,0.1153722,116850.0,116840.0,0.32245894]
[1754753864239,0.57184629,116850.0,116840.0,0.32245894]
[1754753864943,0.57184629,116850.0,116840.0,0.35322715]
[1754753865937,0.1292122,116850.0,116840.0,0.35322715]
[1754753866140,0.57184629,116850.0,116840.0,0.24553841]
[1754753867441,0.1292122,116850.0,116840.0,0.24553841]
[1754753867739,0.57184629,116850.0,116840.0,0.24553841]
[1754753869241,0.57713629,116850.0,116840.0,0.24553841]
[1754753870841,0.60116629,116850.0,116840.0,0.24553841]
[1754753872743,0.1585322,116850.0,116840.0,0.24553841]
[1754753872943,0.60116629,116850.0,116840.0,0.24553841]
[1754753873243,0.60116629,116850.0,116840.0,0.39927433]
[1754753876643,0.60116629,116850.0,116840.0,0.76007433]
[1754753877442,0.60116629,116850.0,116840.0,0.39927433]
[1754753877637,0.60116629,116850.0,116840.0,0.18116433]
[1754753877946,0.60116629,116850.0,116840.0,1.10463413]
[1754753878144,0.60116629,116850.0,116840.0,1.13707413]
[1754753878448,0.7076369,116860.0,116850.0,0.0237]
[1754753878851,0.7030369,116860.0,116850.0,0.0237]
[1754753879550,1.14567099,116860.0,116850.0,0.0237]
[1754753880050,1.14667099,116860.0,116850.0,0.0237]
[1754753880452,1.14867099,116860.0,116850.0,0.0247]
[1754753883956,1.15327099,116860.0,116850.0,0.0247]
[1754753884152,1.15327099,116860.0,116850.0,0.001]
[1754753884550,1.15327099,116860.0,116850.0,0.0247]
[1754753885854,1.15327099,116860.0,116850.0,0.13242751]
[1754753887758,0.7106369,116860.0,116850.0,0.13242751]
[1754753887957,0.79247099,116860.0,116850.0,0.16266751]
[1754753888158,0.2642755,116860.0,116850.0,0.766834]
[1754753888357,0.2642755,116860.0,116850.0,0.65910649]
[1754753888553,0.2642755,116860.0,116850.0,1.01990649]
[1754753888856,0.1787144,116860.0,116850.0,1.01990649]
[1754753889449,0.0076,116860.0,116850.0,1.19105849]
[1754753889649,0.0076,116860.0,116850.0,1.34497521]
[1754753889954,0.0855495,116870.0,116860.0,0.2149851]
[1754753890153,0.0855495,116870.0,116860.0,1.83201919]
[1754753890352,0.0855495,116870.0,116860.0,1.98593591]
[1754753891057,0.0885495,116870.0,116860.0,1.98693591]
[1754753891255,0.0885495,116870.0,116860.0,1.54406947]
[1754753892154,0.0905495,116870.0,116860.0,1.54406947]
[1754753892645,0.53049359,116870.0,116860.0,1.54406947]
[1754753894753,0.53418359,116870.0,116860.0,1.54406947]
[1754753895058,0.53418359,116870.0,116860.0,1.54382947]
[1754753895454,0.53418359,116870.0,116860.0,1.3901451]
[1754753896159,0.53418359,116870.0,116860.0,1.3891451]
[1754753896651,0.53518359,116870.0,116860.0,1.3891451]
[1754753897751,0.53518359,116870.0,116860.0,1.54282947]
[1754753898959,0.53518359,116870.0,116860.0,1.65030199]
[1754753899352,0.53518359,116870.0,116860.0,1.49661762]
[1754753900863,0.53518359,116870.0,116860.0,1.49625762]
[1754753903868,0.53518359,116870.0,116860.0,1.13545752]
[1754753909469,0.53518359,116870.0,116860.0,1.027985]
[1754753910574,0.53518359,116870.0,116860.0,0.94243]
[1754753911365,0.89598359,116870.0,116860.0,0.94243]
[1754753911771,0.53518359,116870.0,116860.0,0.94243]
[1754753912275,0.53518359,116870.0,116860.0,1.0279852]
[1754753912578,0.53518359,116870.0,116860.0,0.94243]
[1754753913378,0.53518359,116870.0,116860.0,1.0279851]
[1754753913778,0.53518359,116870.0,116860.0,0.94243]
[1754753913979,0.53518359,116870.0,116860.0,1.0279851]
[1754753916179,0.53518359,116870.0,116860.0,1.18166947]
[1754753920487,0.53518359,116870.0,116860.0,1.09611437]
[1754753920788,0.53518359,116870.0,116860.0,1.18166947]
[1754753922388,0.53518359,116870.0,116860.0,1.09511437]
[1754753923891,0.53518359,116870.0,116860.0,1.18066947]
[1754753925085,0.53518359,116870.0,116860.0,1.0269851]
[1754753926492,0.53149359,116870.0,116860.0,1.1809918]
[1754753928895,0.53149359,116870.0,116860.0,1.0269851]
[1754753932297,0.53518359,116870.0,116860.0,1.0269851]
[1754753932593,0.0925495,116870.0,116860.0,1.0269851]
[1754753932799,0.75704624,116870.0,116860.0,1.0269851]
[1754753934794,0.53553876,116870.0,116860.0,1.0269851]
[1754753942699,0.53553876,116870.0,116860.0,1.1809918]
[1754753943594,0.53553876,116870.0,116860.0,1.0269851]
[1754753945101,0.53553876,116870.0,116860.0,1.1809918]
[1754753946211,0.53553876,116870.0,116860.0,1.5417918]
[1754753947012,0.53553876,116870.0,116860.0,1.1809918]
[1754753947307,0.53553876,116870.0,116860.0,1.5417918]
[1754753947518,0.53553876,116870.0,116860.0,1.1809918]
[1754753947720,0.53553876,116870.0,116860.0,1.5417918]
[1754753948108,0.53184876,116870.0,116860.0,1.5417918]
[1754753948412,0.53184876,116870.0,116860.0,1.3877851]
[1754753949214,0.53184876,116870.0,116860.0,1.5417918]
[1754753949814,0.0888595,116870.0,116860.0,1.5417918]
[1754753950109,0.53184876,116870.0,116860.0,1.5417918]
[1754753950809,0.53184876,116870.0,116860.0,1.3877851]
[1754753951415,0.52953876,116870.0,116860.0,1.3877851]
[1754753951613,0.0865495,116870.0,116860.0,1.3877851]
[1754753951809,0.52953876,116870.0,116860.0,1.3877851]
[1754753952314,0.52953876,116870.0,116860.0,1.5417918]
[1754753953917,0.52953876,116870.0,116860.0,1.3877851]
[1754753954614,0.75329448,116870.0,116860.0,1.3877851]
[1754753960625,0.42107699,116870.0,116860.0,1.3877851]
[1754753961322,0.42107699,116870.0,116860.0,1.0269851]
[1754753961517,0.42107699,116870.0,116860.0,1.3877851]
[1754753962624,0.42107699,116870.0,116860.0,1.54180924]
[1754753962924,0.75329448,116870.0,116860.0,1.54180924]
[1754753963524,0.75329448,116870.0,116860.0,1.18100924]
[1754753964424,0.75329448,116870.0,116860.0,1.0269851]
[1754753964823,0.75698448,116870.0,116860.0,1.0269851]
[1754753972330,0.75698448,116870.0,116860.0,1.18100924]
[1754753979336,0.0925495,116870.0,116860.0,1.18100924]
[1754753979637,0.75698448,116870.0,116860.0,1.18100924]
[1754753979928,1.44631197,116870.0,116860.0,1.12729625]
[1754753980134,1.11409448,116870.0,116860.0,1.18038625]
[1754753980335,1.11409448,116870.0,116860.0,1.02636211]
[1754753988041,1.11409448,116870.0,116860.0,0.94174]
[1754753992245,1.11409448,116870.0,116860.0,1.04941513]
[1754753992841,1.11778448,116870.0,116860.0,1.04941513]
[1754753994549,1.11778448,116870.0,116860.0,0.94174]
[1754754011158,1.11778448,116870.0,116860.0,0.12974]
[1754754011359,1.11778448,116870.0,116860.0,0.93674]
[1754754011555,1.45000197,116870.0,116860.0,0.0221428]
[1754754011756,0.132205,116860.0,116850.0,0.25603414]
[1754754011962,1.48965747,116860.0,116850.0,0.90897]
[1754754012761,1.15743998,116860.0,116850.0,0.90897]
[1754754013353,1.15743998,116860.0,116850.0,0.90997]
[1754754013654,1.48965747,116860.0,116850.0,0.90997]
[1754754013948,1.48965747,116860.0,116850.0,0.93367]
[1754754014359,1.49065747,116860.0,116850.0,0.93367]
[1754754015362,1.15843998,116860.0,116850.0,0.93367]
[1754754015560,1.15943998,116860.0,116850.0,0.93267]
[1754754015963,0.495005,116860.0,116850.0,0.93267]
[1754754016164,1.15943998,116860.0,116850.0,0.93267]
[1754754017662,1.49165747,116860.0,116850.0,0.93267]
[1754754018164,1.13085747,116860.0,116850.0,0.93267]
[1754754018362,0.495005,116860.0,116850.0,0.93267]
[1754754018562,1.49165747,116860.0,116850.0,0.93267]
[1754754018970,0.1050523,116850.0,116840.0,0.07669841]
[1754754019164,1.46481477,116850.0,116840.0,0.95873841]
[1754754019362,1.49889477,116850.0,116840.0,0.34512047]
[1754754019659,1.16667728,116850.0,116840.0,0.37593914]
[1754754020168,1.16667728,116850.0,116840.0,0.15652867]
[1754754020463,1.16667728,116850.0,116840.0,0.26425793]
[1754754020763,1.16667728,116850.0,116840.0,0.15652867]
[1754754020963,1.17896728,116850.0,116840.0,0.15652867]
[1754754021165,0.5145323,116850.0,116840.0,0.26425793]
[1754754021365,1.51118477,116850.0,116840.0,0.26525793]
[1754754021666,1.51218477,116850.0,116840.0,0.15752867]
[1754754021967,1.17996728,116850.0,116840.0,0.15752867]
[1754754022165,1.18096728,116850.0,116840.0,0.15652867]
[1754754023064,1.18096728,116850.0,116840.0,0.26425793]
[1754754024166,0.84874979,116850.0,116840.0,0.26425793]
[1754754025068,0.5165323,116850.0,116840.0,0.26425793]
[1754754025268,0.84874979,116850.0,116840.0,0.26425793]
[1754754025872,0.91868529,116850.0,116840.0,0.26425793]
[1754754026271,0.5864678,116850.0,116840.0,0.26425793]
[1754754026472,0.91868529,116850.0,116840.0,0.26425793]
[1754754028770,0.91868529,116850.0,116840.0,0.15652867]
[1754754030872,1.25090278,116850.0,116840.0,0.15652867]
[1754754031886,1.25090278,116850.0,116840.0,0.26425793]
[1754754033479,1.25090278,116850.0,116840.0,0.15652867]
[1754754033683,2.05678278,116850.0,116840.0,7e-08]
[1754754033882,0.1349696,116840.0,116830.0,0.10772926]
[1754754034083,1.22946458,116840.0,116830.0,0.13944926]
[1754754034285,1.22946458,116840.0,116830.0,0.16084926]
[1754754034484,1.22946458,116840.0,116830.0,0.17718926]
[1754754034682,1.22946458,116840.0,116830.0,0.06946]
[1754754034883,1.22946458,116840.0,116830.0,0.09929078]
[1754754035581,1.22946458,116840.0,116830.0,0.13522078]
[1754754037082,1.22946458,116840.0,116830.0,0.15962078]
[1754754037289,1.22946458,116840.0,116830.0,0.26723461]
[1754754038090,1.22946458,116840.0,116830.0,0.24283461]
[1754754038297,1.22946458,116840.0,116830.0,0.13522078]
[1754754038484,1.22946458,116840.0,116830.0,0.15962078]
[1754754039995,1.22946458,116840.0,116830.0,0.13522078]
[1754754046195,0.5650296,116840.0,116830.0,0.13522078]
[1754754046396,1.22946458,116840.0,116830.0,0.13522078]
[1754754050500,0.5650296,116840.0,116830.0,0.13522078]
[1754754050701,0.5083296,116840.0,116830.0,0.46743827]
[1754754050897,0.1262196,116840.0,116830.0,0.85263827]
[1754754051101,0.0855696,116840.0,116830.0,1.37806982]
[1754754051309,0.0855696,116840.0,116830.0,1.84925382]
[1754754051500,0.0855696,116840.0,116830.0,1.74161666]
[1754754052603,0.0855696,116840.0,116830.0,1.40939917]
[1754754053003,0.0855696,116840.0,116830.0,1.07718168]
[1754754053203,0.0855696,116840.0,116830.0,1.40939917]
[1754754053811,0.0855696,116840.0,116830.0,1.90939917]
[1754754054410,0.0855696,116840.0,116830.0,2.01707962]
[1754754054605,0.0855696,116840.0,116830.0,2.12786693]
[1754754054909,0.3709476,116860.0,116840.0,0.3887485]
[1754754055110,0.3465376,116860.0,116850.0,1.57309125]
[1754754055501,0.3465376,116860.0,116850.0,1.0224125]
[1754754055704,0.3465376,116860.0,116850.0,1.4654173]
[1754754056111,0.3485376,116860.0,116850.0,1.4664173]
[1754754056311,0.3505376,116860.0,116850.0,1.4664173]
[1754754056507,0.2649762,116860.0,116850.0,1.8272173]
[1754754056714,0.2606762,116860.0,116850.0,1.8272173]
[1754754056909,0.2586762,116860.0,116850.0,1.8272173]
[1754754057607,0.0875556,116860.0,116850.0,2.10590596]
[1754754058207,0.0875556,116860.0,116850.0,1.66290116]
[1754754058401,0.1264156,116860.0,116850.0,2.10590596]
[1754754058603,0.1601156,116860.0,116850.0,2.60590596]
[1754754059009,0.6517504,116860.0,116850.0,1.99150916]
[1754754059207,0.2087456,116860.0,116850.0,1.99150916]
[1754754060314,0.2087456,116860.0,116850.0,1.49150916]
[1754754060508,0.1099656,116860.0,116850.0,1.93451396]
[1754754060719,0.0855556,116860.0,116850.0,1.93451396]
[1754754061510,0.3188654,116870.0,116860.0,0.0855549]
[1754754061511,0.3707195,116870.0,116860.0,0.0855549]
[1754754061715,0.2851654,116870.0,116860.0,1.0214097]
[1754754062106,0.2607554,116870.0,116860.0,1.0214097]
[1754754062313,0.0896487,116870.0,116860.0,1.0214097]
[1754754062513,0.0051,116870.0,116860.0,1.12894636]
[1754754062809,0.0906476,116870.0,116860.0,1.12894636]
[1754754064113,0.0906476,116870.0,116860.0,1.62894636]
[1754754064518,0.0916476,116870.0,116860.0,1.62894636]
[1754754064817,0.1160576,116870.0,116860.0,1.62894636]
[1754754065209,0.1150576,116870.0,116860.0,1.62994636]
[1754754065610,0.1140576,116870.0,116860.0,1.62994636]
[1754754065814,0.1305076,116870.0,116860.0,1.62994636]
[1754754066217,0.1305076,116870.0,116860.0,1.5224097]
[1754754067410,0.1649076,116870.0,116860.0,1.5224097]
[1754754068018,0.1649076,116870.0,116860.0,1.62969407]
[1754754072423,0.1305076,116870.0,116860.0,1.62969407]